[Event "Titled Tuesday Blitz April 4 Late 2023"]
[White "Kramnik, Vladimir"]
[Black "Goffredo_Fofi"]
[WhiteFideId "4101588"]
[WhiteElo "2712"]
[BlackElo "2508"]
[Result "1-0"]
[Round "01"]
[TimeControl "180+2"]
[Date "2023.04.04"]
[WhiteClock "0:00:17"]
[BlackClock "0:00:01"]

1. c4 {[%clk 0:02:58]}  g6 {[%clk 0:02:59]} 2. Nc3 {[%clk 0:02:56]}  Bg7 {[%clk 0:03:00]} 3. g3 {[%clk 0:02:56]}  Nf6 {[%clk 0:03:00]} 4. Bg2 {[%clk 0:02:56]}  O-O {[%clk 0:03:01]} 5. e3 {[%clk 0:02:55]}  d6 {[%clk 0:03:00]} 6. Nge2 {[%clk 0:02:55]}  e5 {[%clk 0:02:57]} 7. O-O {[%clk 0:02:55]}  c6 {[%clk 0:02:56]} 8. e4 {[%clk 0:02:52]}  Nbd7 {[%clk 0:02:48]} 9. d3 {[%clk 0:02:52]}  a5 {[%clk 0:02:35]} 10. h3 {[%clk 0:02:51]}  Nc5 {[%clk 0:02:33]} 11. Be3 {[%clk 0:02:51]}  Nh5 {[%clk 0:02:23]} 12. d4 {[%clk 0:02:45]}  exd4 {[%clk 0:02:22]} 13. Bxd4 {[%clk 0:02:45]}  Be6 {[%clk 0:01:49]} 14. Bxg7 {[%clk 0:02:42]}  Nxg7 {[%clk 0:01:45]} 15. Qd4 {[%clk 0:02:40]}  Qe7 {[%clk 0:01:40]} 16. b3 {[%clk 0:02:37]}  Rad8 {[%clk 0:01:37]} 17. Rad1 {[%clk 0:02:35]}  Rfe8 {[%clk 0:01:17]} 18. Rfe1 {[%clk 0:02:34]}  Bc8 {[%clk 0:01:12]} 19. Qd2 {[%clk 0:02:23]}  f5 {[%clk 0:00:58]} 20. exf5 {[%clk 0:02:20]}  Nxf5 {[%clk 0:00:59]} 21. Nd4 {[%clk 0:02:10]}  Qf7 {[%clk 0:00:59]} 22. Rxe8+ {[%clk 0:02:04]}  Qxe8 {[%clk 0:01:00]} 23. Re1 {[%clk 0:02:00]}  Qf8 {[%clk 0:00:53]} 24. Nf3 {[%clk 0:01:58]}  Qf6 {[%clk 0:00:34]} 25. g4 {[%clk 0:01:47]}  Ng7 {[%clk 0:00:34]} 26. Ng5 {[%clk 0:01:40]}  Re8 {[%clk 0:00:32]} 27. Nge4 {[%clk 0:01:34]}  Nxe4 {[%clk 0:00:29]} 28. Nxe4 {[%clk 0:01:33]}  Qd8 {[%clk 0:00:22]} 29. Qd4 {[%clk 0:01:22]}  Re6 {[%clk 0:00:20]} 30. Rd1 {[%clk 0:01:19]}  Ne8 {[%clk 0:00:17]} 31. f4 {[%clk 0:01:18]}  Qe7 {[%clk 0:00:17]} 32. Kh2 {[%clk 0:01:14]}  Qg7 {[%clk 0:00:15]} 33. Qd2 {[%clk 0:01:10]}  Qe7 {[%clk 0:00:13]} 34. Ng3 {[%clk 0:01:09]}  Re3 {[%clk 0:00:12]} 35. Qd4 {[%clk 0:00:52]}  Bxg4 {[%clk 0:00:10]} 36. Rd2 {[%clk 0:00:45]}  Bc8 {[%clk 0:00:10]} 37. Ne4 {[%clk 0:00:43]}  Re1 {[%clk 0:00:08]} 38. Nxd6 {[%clk 0:00:37]}  Nxd6 {[%clk 0:00:09]} 39. Qxd6 {[%clk 0:00:37]}  Qxd6 {[%clk 0:00:04]} 40. Rxd6 {[%clk 0:00:37]}  Kf7 {[%clk 0:00:05]} 41. Rd8 {[%clk 0:00:31]}  Re8 {[%clk 0:00:05]} 42. Rd2 {[%clk 0:00:30]}  Re7 {[%clk 0:00:05]} 43. Kg3 {[%clk 0:00:30]}  Bf5 {[%clk 0:00:06]} 44. Kf2 {[%clk 0:00:30]}  Rd7 {[%clk 0:00:06]} 45. Rxd7+ {[%clk 0:00:28]}  Bxd7 {[%clk 0:00:07]} 46. Ke3 {[%clk 0:00:28]}  b6 {[%clk 0:00:07]} 47. Kd4 {[%clk 0:00:27]}  c5+ {[%clk 0:00:05]} 48. Ke5 {[%clk 0:00:27]}  Ke7 {[%clk 0:00:06]} 49. h4 {[%clk 0:00:26]}  Bf5 {[%clk 0:00:06]} 50. Bc6 {[%clk 0:00:18]}  Bb1 {[%clk 0:00:05]} 51. Ba4 {[%clk 0:00:17]}  Bc2 {[%clk 0:00:03]} 52. Kd5 {[%clk 0:00:17]}  Bd1 {[%clk 0:00:01]} 53. Kc6 {[%clk 0:00:17]} 1-0


[Site "https://www.chess.com"]

[Event "Titled Tuesday Blitz April 4 Late 2023"]
[White "Roebers, Eline"]
[Black "Martinez Alcantara, Jose Eduardo"]
[WhiteFideId "1058401"]
[BlackFideId "3805662"]
[WhiteElo "2507"]
[BlackElo "2711"]
[Result "0-1"]
[Round "01"]
[TimeControl "180+2"]
[Date "2023.04.04"]
[WhiteClock "0:00:02"]
[BlackClock "0:01:31"]

1. e4 {[%clk 0:03:00]}  c5 {[%clk 0:02:55]} 2. Nf3 {[%clk 0:03:00]}  d6 {[%clk 0:02:55]} 3. d4 {[%clk 0:03:00]}  cxd4 {[%clk 0:02:56]} 4. Nxd4 {[%clk 0:03:00]}  Nf6 {[%clk 0:02:56]} 5. Nc3 {[%clk 0:03:01]}  a6 {[%clk 0:02:56]} 6. f4 {[%clk 0:03:01]}  e5 {[%clk 0:02:54]} 7. Nb3 {[%clk 0:02:59]}  Nbd7 {[%clk 0:02:54]} 8. Be2 {[%clk 0:02:55]}  Be7 {[%clk 0:02:54]} 9. O-O {[%clk 0:02:53]}  O-O {[%clk 0:02:55]} 10. Bf3 {[%clk 0:02:40]}  b5 {[%clk 0:02:53]} 11. a4 {[%clk 0:02:40]}  b4 {[%clk 0:02:48]} 12. Nd5 {[%clk 0:02:35]}  Bb7 {[%clk 0:02:48]} 13. Be3 {[%clk 0:02:22]}  a5 {[%clk 0:02:37]} 14. Qd2 {[%clk 0:02:16]}  Nxd5 {[%clk 0:02:30]} 15. exd5 {[%clk 0:02:16]}  Rc8 {[%clk 0:02:31]} 16. Rae1 {[%clk 0:01:57]}  Bf6 {[%clk 0:02:25]} 17. Bg4 {[%clk 0:01:46]}  Ra8 {[%clk 0:02:03]} 18. Bxd7 {[%clk 0:01:27]}  Qxd7 {[%clk 0:02:04]} 19. fxe5 {[%clk 0:01:19]}  Bxe5 {[%clk 0:02:05]} 20. Bd4 {[%clk 0:01:18]}  f6 {[%clk 0:02:03]} 21. Bxe5 {[%clk 0:01:09]}  dxe5 {[%clk 0:02:03]} 22. Rd1 {[%clk 0:00:51]}  Rfd8 {[%clk 0:02:02]} 23. Nc5 {[%clk 0:00:49]}  Qxd5 {[%clk 0:01:54]} 24. Qxd5+ {[%clk 0:00:36]}  Bxd5 {[%clk 0:01:55]} 25. Rd2 {[%clk 0:00:34]}  Bc6 {[%clk 0:01:55]} 26. Rfd1 {[%clk 0:00:28]}  Rxd2 {[%clk 0:01:55]} 27. Rxd2 {[%clk 0:00:29]}  Rc8 {[%clk 0:01:55]} 28. c3 {[%clk 0:00:17]}  bxc3 {[%clk 0:01:54]} 29. bxc3 {[%clk 0:00:17]}  Kf7 {[%clk 0:01:55]} 30. Kf2 {[%clk 0:00:14]}  Ke7 {[%clk 0:01:55]} 31. Rb2 {[%clk 0:00:13]}  Kd6 {[%clk 0:01:46]} 32. Nb3 {[%clk 0:00:03]}  Ra8 {[%clk 0:01:45]} 33. Rd2+ {[%clk 0:00:03]}  Kc7 {[%clk 0:01:45]} 34. Nc5 {[%clk 0:00:03]}  Kb6 {[%clk 0:01:43]} 35. Ne6 {[%clk 0:00:03]}  Bxa4 {[%clk 0:01:31]} 36. Rd6+ {[%clk 0:00:02]}  Bc6 {[%clk 0:01:32]} 37. Nxg7 {[%clk 0:00:02]}  a4 {[%clk 0:01:32]} 38. Nf5 {[%clk 0:00:02]}  Kc5 {[%clk 0:01:31]} 0-1


[Site "https://www.chess.com"]

[Event "Titled Tuesday Blitz April 4 Late 2023"]
[White "Alekseenko, Kirill"]
[Black "Aggelis, Nikolaos"]
[WhiteFideId "4135539"]
[BlackFideId "4213220"]
[WhiteElo "2683"]
[BlackElo "2189"]
[Result "1-0"]
[Round "01"]
[TimeControl "180+2"]
[Date "2023.04.04"]
[WhiteClock "0:01:01"]
[BlackClock "0:00:09"]

1. d4 {[%clk 0:02:58]}  f5 {[%clk 0:02:55]} 2. Nc3 {[%clk 0:02:58]}  d5 {[%clk 0:02:52]} 3. Bf4 {[%clk 0:02:48]}  c6 {[%clk 0:02:50]} 4. e3 {[%clk 0:02:48]}  Nf6 {[%clk 0:02:49]} 5. Nf3 {[%clk 0:02:48]}  e6 {[%clk 0:02:48]} 6. Bd3 {[%clk 0:02:44]}  Be7 {[%clk 0:02:47]} 7. O-O {[%clk 0:02:40]}  O-O {[%clk 0:02:47]} 8. Ne5 {[%clk 0:02:40]}  Nbd7 {[%clk 0:02:43]} 9. h3 {[%clk 0:02:37]}  Nxe5 {[%clk 0:02:34]} 10. Bxe5 {[%clk 0:02:38]}  Bd7 {[%clk 0:02:15]} 11. Ne2 {[%clk 0:02:36]}  Ne8 {[%clk 0:01:41]} 12. c4 {[%clk 0:02:36]}  Bd6 {[%clk 0:01:28]} 13. Qb3 {[%clk 0:02:30]}  Qb6 {[%clk 0:01:22]} 14. c5 {[%clk 0:02:23]}  Qxb3 {[%clk 0:01:21]} 15. axb3 {[%clk 0:02:24]}  Bxe5 {[%clk 0:01:21]} 16. dxe5 {[%clk 0:02:25]}  Nc7 {[%clk 0:01:17]} 17. f4 {[%clk 0:02:22]}  b5 {[%clk 0:01:00]} 18. b4 {[%clk 0:02:11]}  Kf7 {[%clk 0:00:58]} 19. g4 {[%clk 0:02:10]}  g6 {[%clk 0:00:59]} 20. Nd4 {[%clk 0:01:58]}  a6 {[%clk 0:00:54]} 21. Kh2 {[%clk 0:01:57]}  Ke7 {[%clk 0:00:53]} 22. Rg1 {[%clk 0:01:57]}  Rg8 {[%clk 0:00:53]} 23. Nb3 {[%clk 0:01:56]}  Ra7 {[%clk 0:00:36]} 24. Rg2 {[%clk 0:01:52]}  Kf7 {[%clk 0:00:23]} 25. Rag1 {[%clk 0:01:51]}  Raa8 {[%clk 0:00:14]} 26. Be2 {[%clk 0:01:50]}  Ra7 {[%clk 0:00:14]} 27. Nd4 {[%clk 0:01:45]}  Raa8 {[%clk 0:00:13]} 28. Bd3 {[%clk 0:01:43]}  Rab8 {[%clk 0:00:12]} 29. Nb3 {[%clk 0:01:42]}  Ra8 {[%clk 0:00:12]} 30. Na5 {[%clk 0:01:43]}  Ra7 {[%clk 0:00:11]} 31. Bc2 {[%clk 0:01:42]}  d4 {[%clk 0:00:11]} 32. e4 {[%clk 0:01:37]}  fxe4 {[%clk 0:00:11]} 33. Bxe4 {[%clk 0:01:38]}  Nd5 {[%clk 0:00:12]} 34. Bxd5 {[%clk 0:01:37]}  exd5 {[%clk 0:00:13]} 35. Rd1 {[%clk 0:01:27]}  Ke7 {[%clk 0:00:13]} 36. Rxd4 {[%clk 0:01:24]}  Rf8 {[%clk 0:00:13]} 37. Kg3 {[%clk 0:01:23]}  Kd8 {[%clk 0:00:11]} 38. Re2 {[%clk 0:01:19]}  Kc7 {[%clk 0:00:11]} 39. e6 {[%clk 0:01:16]}  Be8 {[%clk 0:00:11]} 40. e7 {[%clk 0:01:07]}  Rf6 {[%clk 0:00:11]} 41. Rd1 {[%clk 0:01:06]}  Kd7 {[%clk 0:00:10]} 42. Rde1 {[%clk 0:01:07]}  Bf7 {[%clk 0:00:09]} 43. e8=Q+ {[%clk 0:01:04]}  Bxe8 {[%clk 0:00:09]} 44. Re7+ {[%clk 0:01:01]} 1-0


[Site "https://www.chess.com"]

[Event "Titled Tuesday Blitz April 4 Late 2023"]
[White "Movahed, Sina"]
[Black "Senthilkumar, Pranav"]
[WhiteFideId "42520835"]
[BlackFideId "2083477"]
[WhiteElo "2225"]
[BlackElo "1860"]
[Result "1-0"]
[Round "01"]
[TimeControl "180+2"]
[Date "2023.04.04"]
[WhiteClock "0:00:53"]
[BlackClock "0:00:09"]

1. Nf3 {[%clk 0:03:00]}  Nf6 {[%clk 0:02:54]} 2. g3 {[%clk 0:03:00]}  d5 {[%clk 0:02:53]} 3. Bg2 {[%clk 0:03:01]}  e6 {[%clk 0:02:53]} 4. O-O {[%clk 0:03:01]}  Be7 {[%clk 0:02:53]} 5. c4 {[%clk 0:03:02]}  O-O {[%clk 0:02:54]} 6. d4 {[%clk 0:03:02]}  dxc4 {[%clk 0:02:52]} 7. Na3 {[%clk 0:03:02]}  Bd7 {[%clk 0:02:45]} 8. Nxc4 {[%clk 0:02:59]}  Bc6 {[%clk 0:02:45]} 9. Bg5 {[%clk 0:02:51]}  Nbd7 {[%clk 0:02:40]} 10. Rc1 {[%clk 0:02:51]}  h6 {[%clk 0:02:37]} 11. Bxf6 {[%clk 0:02:50]}  Bxf6 {[%clk 0:02:35]} 12. e3 {[%clk 0:02:45]}  Nb6 {[%clk 0:02:33]} 13. Na5 {[%clk 0:02:43]}  Bd5 {[%clk 0:02:28]} 14. a3 {[%clk 0:02:41]}  Rc8 {[%clk 0:01:57]} 15. Qe2 {[%clk 0:02:37]}  c5 {[%clk 0:01:55]} 16. e4 {[%clk 0:02:11]}  Na4 {[%clk 0:01:38]} 17. exd5 {[%clk 0:02:05]}  Qxa5 {[%clk 0:01:37]} 18. dxe6 {[%clk 0:02:02]}  fxe6 {[%clk 0:01:14]} 19. Qxe6+ {[%clk 0:01:59]}  Kh8 {[%clk 0:01:15]} 20. b4 {[%clk 0:01:53]}  Qb5 {[%clk 0:01:01]} 21. bxc5 {[%clk 0:01:49]}  Rfe8 {[%clk 0:00:57]} 22. Qf5 {[%clk 0:01:46]}  Qb2 {[%clk 0:00:55]} 23. Rce1 {[%clk 0:01:36]}  Bxd4 {[%clk 0:00:49]} 24. Nxd4 {[%clk 0:01:34]}  Qxd4 {[%clk 0:00:48]} 25. Bxb7 {[%clk 0:01:35]}  Rf8 {[%clk 0:00:18]} 26. Re4 {[%clk 0:00:59]}  Rxf5 {[%clk 0:00:13]} 27. Rxd4 {[%clk 0:00:58]}  Rc7 {[%clk 0:00:12]} 28. Be4 {[%clk 0:00:54]}  Rfxc5 {[%clk 0:00:09]} 29. Rd8# {[%clk 0:00:53]} 1-0


[Site "https://www.chess.com"]

[Event "Titled Tuesday Blitz April 4 Late 2023"]
[White "Becerra, Juan David"]
[Black "Abdrlauf, Elham"]
[WhiteFideId "4404998"]
[BlackFideId "1533533"]
[WhiteElo "2276"]
[BlackElo "2469"]
[Result "0-1"]
[Round "01"]
[TimeControl "180+2"]
[Date "2023.04.04"]
[WhiteClock "0:00:01"]
[BlackClock "0:00:51"]

1. e4 {[%clk 0:02:58]}  c6 {[%clk 0:02:50]} 2. d4 {[%clk 0:02:53]}  d5 {[%clk 0:02:51]} 3. exd5 {[%clk 0:02:44]}  cxd5 {[%clk 0:02:49]} 4. Bd3 {[%clk 0:02:44]}  Nf6 {[%clk 0:02:48]} 5. h3 {[%clk 0:02:42]}  g6 {[%clk 0:02:47]} 6. Nf3 {[%clk 0:02:40]}  Bg7 {[%clk 0:02:47]} 7. O-O {[%clk 0:02:40]}  O-O {[%clk 0:02:47]} 8. Re1 {[%clk 0:02:39]}  Nc6 {[%clk 0:02:47]} 9. c3 {[%clk 0:02:32]}  Bf5 {[%clk 0:02:45]} 10. Bf4 {[%clk 0:02:12]}  Rc8 {[%clk 0:02:44]} 11. Ne5 {[%clk 0:02:04]}  Bxd3 {[%clk 0:02:29]} 12. Qxd3 {[%clk 0:01:51]}  Nxe5 {[%clk 0:02:28]} 13. Bxe5 {[%clk 0:01:51]}  e6 {[%clk 0:02:25]} 14. Nd2 {[%clk 0:01:48]}  a6 {[%clk 0:02:20]} 15. a4 {[%clk 0:01:43]}  Nd7 {[%clk 0:02:20]} 16. Bxg7 {[%clk 0:01:40]}  Kxg7 {[%clk 0:02:21]} 17. a5 {[%clk 0:01:39]}  Nb8 {[%clk 0:02:17]} 18. b4 {[%clk 0:01:36]}  Nc6 {[%clk 0:02:13]} 19. Nb3 {[%clk 0:01:35]}  Na7 {[%clk 0:02:11]} 20. Nc5 {[%clk 0:01:33]}  Qe7 {[%clk 0:02:11]} 21. h4 {[%clk 0:01:32]}  Qxh4 {[%clk 0:02:05]} 22. Nxb7 {[%clk 0:01:30]}  Nb5 {[%clk 0:02:06]} 23. Nc5 {[%clk 0:01:29]}  Rc6 {[%clk 0:02:06]} 24. Re3 {[%clk 0:01:24]}  Rfc8 {[%clk 0:01:56]} 25. Rae1 {[%clk 0:01:18]}  Nd6 {[%clk 0:01:55]} 26. Rh3 {[%clk 0:01:11]}  Qf4 {[%clk 0:01:49]} 27. Rf3 {[%clk 0:00:55]}  Qg5 {[%clk 0:01:35]} 28. Rg3 {[%clk 0:00:40]}  Qf5 {[%clk 0:01:25]} 29. Qe2 {[%clk 0:00:30]}  Ne4 {[%clk 0:01:20]} 30. Rf3 {[%clk 0:00:27]}  Qg5 {[%clk 0:01:18]} 31. Nxe4 {[%clk 0:00:17]}  dxe4 {[%clk 0:01:19]} 32. Qxe4 {[%clk 0:00:18]}  Rxc3 {[%clk 0:01:19]} 33. Rxc3 {[%clk 0:00:17]}  Rxc3 {[%clk 0:01:19]} 34. Qb7 {[%clk 0:00:07]}  Rc4 {[%clk 0:00:53]} 35. Qxa6 {[%clk 0:00:06]}  Rxb4 {[%clk 0:00:53]} 36. Qa8 {[%clk 0:00:03]}  Ra4 {[%clk 0:00:51]} 37. a6 {[%clk 0:00:03]}  Qa5 {[%clk 0:00:51]} 38. Qb7 {[%clk 0:00:01]}  Qxe1+ {[%clk 0:00:51]} 0-1


[Site "https://www.chess.com"]

[Event "Titled Tuesday Blitz April 4 Late 2023"]
[White "Kollars, Dmitrij"]
[Black "Kashefi, Amir Hosein"]
[WhiteFideId "12909572"]
[BlackFideId "12557935"]
[WhiteElo "2584"]
[BlackElo "2064"]
[Result "1-0"]
[Round "01"]
[TimeControl "180+2"]
[Date "2023.04.04"]
[WhiteClock "0:00:47"]
[BlackClock "0:00:02"]

1. e4 {[%clk 0:02:58]}  c6 {[%clk 0:02:58]} 2. d3 {[%clk 0:02:57]}  d5 {[%clk 0:02:58]} 3. Nf3 {[%clk 0:02:58]}  dxe4 {[%clk 0:02:57]} 4. dxe4 {[%clk 0:02:58]}  Qxd1+ {[%clk 0:02:57]} 5. Kxd1 {[%clk 0:02:59]}  Bg4 {[%clk 0:02:54]} 6. Be2 {[%clk 0:02:59]}  Nd7 {[%clk 0:02:49]} 7. Ne1 {[%clk 0:02:59]}  Bxe2+ {[%clk 0:02:46]} 8. Kxe2 {[%clk 0:03:00]}  e6 {[%clk 0:02:46]} 9. a4 {[%clk 0:02:49]}  Ngf6 {[%clk 0:02:40]} 10. f3 {[%clk 0:02:47]}  a5 {[%clk 0:02:33]} 11. Nd2 {[%clk 0:02:46]}  O-O-O {[%clk 0:02:22]} 12. Nc4 {[%clk 0:02:44]}  Bc5 {[%clk 0:02:12]} 13. Nxa5 {[%clk 0:02:41]}  Bb6 {[%clk 0:01:54]} 14. Nc4 {[%clk 0:02:40]}  Bc7 {[%clk 0:01:54]} 15. Nd3 {[%clk 0:02:39]}  Ne8 {[%clk 0:01:50]} 16. Be3 {[%clk 0:02:35]}  Nd6 {[%clk 0:01:47]} 17. Nxd6+ {[%clk 0:02:34]}  Bxd6 {[%clk 0:01:43]} 18. b4 {[%clk 0:02:35]}  Ne5 {[%clk 0:01:39]} 19. Nxe5 {[%clk 0:02:30]}  Bxe5 {[%clk 0:01:40]} 20. Ra3 {[%clk 0:02:29]}  Rd7 {[%clk 0:01:38]} 21. Rd3 {[%clk 0:02:25]}  Rhd8 {[%clk 0:01:37]} 22. h3 {[%clk 0:02:21]}  Rxd3 {[%clk 0:01:30]} 23. cxd3 {[%clk 0:02:22]}  Bd4 {[%clk 0:01:30]} 24. Rc1 {[%clk 0:02:18]}  Bxe3 {[%clk 0:01:24]} 25. Kxe3 {[%clk 0:02:19]}  e5 {[%clk 0:01:24]} 26. g3 {[%clk 0:02:15]}  f6 {[%clk 0:01:20]} 27. f4 {[%clk 0:02:15]}  Kc7 {[%clk 0:01:18]} 28. Rc5 {[%clk 0:02:08]}  Kd6 {[%clk 0:01:16]} 29. a5 {[%clk 0:02:05]}  b6 {[%clk 0:01:08]} 30. axb6 {[%clk 0:02:03]}  Rb8 {[%clk 0:01:07]} 31. fxe5+ {[%clk 0:01:54]}  fxe5 {[%clk 0:01:07]} 32. d4 {[%clk 0:01:54]}  exd4+ {[%clk 0:01:07]} 33. Kxd4 {[%clk 0:01:55]}  Rxb6 {[%clk 0:01:08]} 34. Kc4 {[%clk 0:01:56]}  Rb8 {[%clk 0:01:07]} 35. e5+ {[%clk 0:01:51]}  Kd7 {[%clk 0:01:07]} 36. Ra5 {[%clk 0:01:49]}  Rb7 {[%clk 0:00:53]} 37. Ra6 {[%clk 0:01:44]}  g6 {[%clk 0:00:52]} 38. g4 {[%clk 0:01:41]}  h5 {[%clk 0:00:51]} 39. g5 {[%clk 0:01:39]}  h4 {[%clk 0:00:49]} 40. Ra8 {[%clk 0:01:27]}  Rb5 {[%clk 0:00:48]} 41. Ra5 {[%clk 0:01:21]}  Rb8 {[%clk 0:00:47]} 42. Kc5 {[%clk 0:01:19]}  Ke6 {[%clk 0:00:47]} 43. Ra6 {[%clk 0:01:13]}  Kxe5 {[%clk 0:00:36]} 44. Rxc6 {[%clk 0:01:11]}  Kf5 {[%clk 0:00:36]} 45. b5 {[%clk 0:01:01]}  Kxg5 {[%clk 0:00:36]} 46. b6 {[%clk 0:01:01]}  Kh5 {[%clk 0:00:32]} 47. Rd6 {[%clk 0:00:58]}  g5 {[%clk 0:00:32]} 48. Rd5 {[%clk 0:00:50]}  Rc8+ {[%clk 0:00:25]} 49. Kd6 {[%clk 0:00:49]}  Rc3 {[%clk 0:00:04]} 50. b7 {[%clk 0:00:48]}  Rb3 {[%clk 0:00:04]} 51. Kc6 {[%clk 0:00:47]}  Kg6 {[%clk 0:00:01]} 52. Rb5 {[%clk 0:00:47]}  Rc3+ {[%clk 0:00:02]} 53. Kb6 {[%clk 0:00:47]} 1-0


[Site "https://www.chess.com"]

[Event "Titled Tuesday Blitz April 4 Late 2023"]
[White "Chigaev, Maksim"]
[Black "Przybylski, Wojciech"]
[WhiteFideId "4108116"]
[BlackFideId "1117599"]
[WhiteElo "2547"]
[BlackElo "2222"]
[Result "1-0"]
[Round "01"]
[TimeControl "180+2"]
[Date "2023.04.04"]
[WhiteClock "0:00:13"]
[BlackClock "0:00:01"]

1. Nf3 {[%clk 0:03:00]}  Nf6 {[%clk 0:02:58]} 2. c4 {[%clk 0:03:00]}  c6 {[%clk 0:02:58]} 3. g3 {[%clk 0:02:59]}  d5 {[%clk 0:02:58]} 4. Bg2 {[%clk 0:03:00]}  Bg4 {[%clk 0:02:55]} 5. Ne5 {[%clk 0:02:58]}  Be6 {[%clk 0:02:52]} 6. cxd5 {[%clk 0:02:57]}  Bxd5 {[%clk 0:02:51]} 7. Nf3 {[%clk 0:02:57]}  c5 {[%clk 0:02:43]} 8. Nc3 {[%clk 0:02:55]}  Bc6 {[%clk 0:02:43]} 9. O-O {[%clk 0:02:56]}  Nbd7 {[%clk 0:02:42]} 10. Qc2 {[%clk 0:02:44]}  e6 {[%clk 0:02:29]} 11. e4 {[%clk 0:02:39]}  Be7 {[%clk 0:02:29]} 12. Rd1 {[%clk 0:02:37]}  e5 {[%clk 0:02:20]} 13. d3 {[%clk 0:02:34]}  h6 {[%clk 0:02:16]} 14. Be3 {[%clk 0:02:33]}  O-O {[%clk 0:02:15]} 15. h3 {[%clk 0:02:30]}  Rc8 {[%clk 0:02:12]} 16. Rac1 {[%clk 0:02:17]}  Re8 {[%clk 0:02:09]} 17. Nh4 {[%clk 0:02:15]}  Bf8 {[%clk 0:02:07]} 18. Nf5 {[%clk 0:02:15]}  b5 {[%clk 0:01:57]} 19. a4 {[%clk 0:02:09]}  a6 {[%clk 0:01:54]} 20. axb5 {[%clk 0:02:08]}  axb5 {[%clk 0:01:54]} 21. Qb3 {[%clk 0:02:08]}  c4 {[%clk 0:01:33]} 22. dxc4 {[%clk 0:02:02]}  bxc4 {[%clk 0:01:33]} 23. Qa2 {[%clk 0:01:31]}  Qc7 {[%clk 0:01:30]} 24. Qxc4 {[%clk 0:01:30]}  Qb7 {[%clk 0:01:25]} 25. Qa2 {[%clk 0:01:21]}  Nxe4 {[%clk 0:01:04]} 26. Nxe4 {[%clk 0:01:13]}  Bxe4 {[%clk 0:01:01]} 27. Rxc8 {[%clk 0:01:13]}  Rxc8 {[%clk 0:00:56]} 28. Rxd7 {[%clk 0:01:08]}  Qxd7 {[%clk 0:00:47]} 29. Bxe4 {[%clk 0:01:08]}  Qd1+ {[%clk 0:00:23]} 30. Kg2 {[%clk 0:01:04]}  Rd8 {[%clk 0:00:23]} 31. Qa5 {[%clk 0:00:26]}  Re8 {[%clk 0:00:07]} 32. g4 {[%clk 0:00:22]}  Qe2 {[%clk 0:00:05]} 33. Qc3 {[%clk 0:00:18]}  g6 {[%clk 0:00:04]} 34. Ng3 {[%clk 0:00:18]}  Qd1 {[%clk 0:00:03]} 35. b4 {[%clk 0:00:17]}  Qd6 {[%clk 0:00:02]} 36. b5 {[%clk 0:00:17]}  Rb8 {[%clk 0:00:01]} 37. Qc6 {[%clk 0:00:13]}  Qxc6 {[%clk 0:00:01]} 38. Bxc6 {[%clk 0:00:13]} 1-0


[Site "https://www.chess.com"]

[Event "Titled Tuesday Blitz April 4 Late 2023"]
[White "Hansen, Eric"]
[Black "Pires, Marcos Vinicius Torsani"]
[WhiteFideId "2606771"]
[BlackFideId "2118939"]
[WhiteElo "2561"]
[BlackElo "2273"]
[Result "1-0"]
[Round "01"]
[TimeControl "180+2"]
[Date "2023.04.04"]
[WhiteClock "0:01:07"]
[BlackClock "0:00:39"]

1. e4 {[%clk 0:02:54]}  c5 {[%clk 0:02:59]} 2. Nf3 {[%clk 0:02:54]}  g6 {[%clk 0:02:59]} 3. h4 {[%clk 0:02:43]}  h5 {[%clk 0:02:53]} 4. d4 {[%clk 0:02:39]}  cxd4 {[%clk 0:02:53]} 5. Nxd4 {[%clk 0:01:57]}  Nc6 {[%clk 0:02:51]} 6. Nc3 {[%clk 0:01:57]}  Bg7 {[%clk 0:02:50]} 7. Be3 {[%clk 0:01:57]}  Nf6 {[%clk 0:02:50]} 8. Be2 {[%clk 0:01:55]}  O-O {[%clk 0:02:47]} 9. O-O {[%clk 0:01:55]}  d5 {[%clk 0:02:42]} 10. exd5 {[%clk 0:01:54]}  Nb4 {[%clk 0:02:41]} 11. Bf3 {[%clk 0:01:43]}  Nfxd5 {[%clk 0:02:39]} 12. Nxd5 {[%clk 0:01:43]}  Nxd5 {[%clk 0:02:40]} 13. Bg5 {[%clk 0:01:44]}  Nf6 {[%clk 0:01:56]} 14. c3 {[%clk 0:01:38]}  Bg4 {[%clk 0:01:53]} 15. Re1 {[%clk 0:01:36]}  Bxf3 {[%clk 0:01:47]} 16. Qxf3 {[%clk 0:01:36]}  Qc7 {[%clk 0:01:24]} 17. a4 {[%clk 0:01:24]}  Rfe8 {[%clk 0:01:19]} 18. Nb5 {[%clk 0:01:21]}  Qb6 {[%clk 0:00:54]} 19. Be3 {[%clk 0:01:21]}  Qe6 {[%clk 0:00:43]} 20. Nc7 {[%clk 0:01:17]}  Qc4 {[%clk 0:00:42]} 21. Nxa8 {[%clk 0:01:15]}  Rxa8 {[%clk 0:00:42]} 22. Qxb7 {[%clk 0:01:15]}  Re8 {[%clk 0:00:41]} 23. Qb5 {[%clk 0:01:07]}  Qxh4 {[%clk 0:00:39]} 24. Bg5 {[%clk 0:01:07]} 1-0


[Site "https://www.chess.com"]

[Event "Titled Tuesday Blitz April 4 Late 2023"]
[White "Shapiro, Viktor"]
[Black "Moroni, Luca Jr"]
[WhiteFideId "4175700"]
[BlackFideId "865834"]
[WhiteElo "2152"]
[BlackElo "2569"]
[Result "0-1"]
[Round "01"]
[TimeControl "180+2"]
[Date "2023.04.04"]
[WhiteClock "0:00:36"]
[BlackClock "0:00:20"]

1. Nf3 {[%clk 0:03:00]}  d6 {[%clk 0:03:00]} 2. g3 {[%clk 0:03:00]}  g5 {[%clk 0:02:59]} 3. h3 {[%clk 0:02:58]}  h6 {[%clk 0:02:58]} 4. c4 {[%clk 0:02:54]}  Bg7 {[%clk 0:02:59]} 5. Nc3 {[%clk 0:02:54]}  c5 {[%clk 0:02:58]} 6. d3 {[%clk 0:02:54]}  Nc6 {[%clk 0:02:58]} 7. a3 {[%clk 0:02:54]}  e6 {[%clk 0:02:58]} 8. Bd2 {[%clk 0:02:54]}  Nge7 {[%clk 0:02:57]} 9. Bg2 {[%clk 0:02:55]}  b6 {[%clk 0:02:56]} 10. Rb1 {[%clk 0:02:55]}  Bb7 {[%clk 0:02:57]} 11. b4 {[%clk 0:02:54]}  Nd4 {[%clk 0:02:55]} 12. e4 {[%clk 0:02:41]}  Nxf3+ {[%clk 0:02:53]} 13. Bxf3 {[%clk 0:02:41]}  Nc6 {[%clk 0:02:53]} 14. O-O {[%clk 0:02:40]}  Ne5 {[%clk 0:02:50]} 15. Bg2 {[%clk 0:02:29]}  Nxd3 {[%clk 0:02:36]} 16. Bxg5 {[%clk 0:02:29]}  Qxg5 {[%clk 0:01:23]} 17. Qxd3 {[%clk 0:02:28]}  O-O {[%clk 0:01:23]} 18. f4 {[%clk 0:02:21]}  Qe7 {[%clk 0:01:17]} 19. Ne2 {[%clk 0:02:13]}  Kh8 {[%clk 0:01:16]} 20. Rbd1 {[%clk 0:02:12]}  Rad8 {[%clk 0:01:16]} 21. Kh2 {[%clk 0:02:12]}  Rg8 {[%clk 0:01:16]} 22. Rd2 {[%clk 0:02:02]}  Ba8 {[%clk 0:01:01]} 23. Rfd1 {[%clk 0:02:01]}  Bf6 {[%clk 0:00:54]} 24. Qe3 {[%clk 0:02:00]}  Kh7 {[%clk 0:00:53]} 25. bxc5 {[%clk 0:01:47]}  bxc5 {[%clk 0:00:50]} 26. e5 {[%clk 0:01:38]}  dxe5 {[%clk 0:00:51]} 27. fxe5 {[%clk 0:01:33]}  Bg5 {[%clk 0:00:51]} 28. Nf4 {[%clk 0:01:32]}  Bxg2 {[%clk 0:00:48]} 29. Kxg2 {[%clk 0:01:32]}  Qb7+ {[%clk 0:00:47]} 30. Kh2 {[%clk 0:01:30]}  Rxd2+ {[%clk 0:00:46]} 31. Rxd2 {[%clk 0:01:30]}  Qb1 {[%clk 0:00:44]} 32. h4 {[%clk 0:01:23]}  Bxf4 {[%clk 0:00:33]} 33. Qxf4 {[%clk 0:01:23]}  Rg7 {[%clk 0:00:34]} 34. Qe3 {[%clk 0:00:52]}  Qg6 {[%clk 0:00:30]} 35. Rf2 {[%clk 0:00:50]}  Qg4 {[%clk 0:00:22]} 36. Rf6 {[%clk 0:00:46]}  Qh5 {[%clk 0:00:22]} 37. Kh3 {[%clk 0:00:39]}  Qd1 {[%clk 0:00:20]} 38. Qxh6+ {[%clk 0:00:37]}  Kg8 {[%clk 0:00:21]} 39. Qe3 {[%clk 0:00:36]}  Qh1# {[%clk 0:00:20]} 0-1


[Site "https://www.chess.com"]